[Event "CZE-ch Youth G10-G12-G14 2022"]
[Site "Luhacovice"]
[Date "2022.03.19"]
[Round "9.22"]
[White "Stavova, Lucie"]
[Black "Nova Anezka"]
[Result "1-0"]
[ECO "C47"]
[WhiteElo "1048"]
[BlackElo "1111"]
[Annotator "NA"]
[PlyCount "76"]
[EventDate "2022.03.12"]
[EventType "swiss"]
[EventCountry "CZE"]
[SourceTitle "playchess.com"]
[Source "ChessBase"]
[SourceQuality "1"]
[TimeControl "40/5400+30:1800+30"]

1. e4 {[%emt 0:00:03]} e5 {[%emt 0:00:06]} 2. Nf3 {[%emt 0:00:10]} Nc6 {[%emt 0:00:08]} 3. Nc3 {[%emt 0:00:14]} Nf6 {[%emt 0:00:10]} 4. d4 {[%emt 0:00:14]} exd4 {[%emt 0:00:24]} 5. Nxd4 {[%emt 0:00:23]} Bb4 {[%emt 0:01:43]} 6. Nxc6 {[%emt 0:02:06]} bxc6 {[%emt 0:00:34]} 7. Bd3 {[%emt 0:01:13]} d5 {[%emt 0:02:24]} 8. exd5 {[%emt 0:01:25]} cxd5 {[%emt 0:01:16]} 9. O-O {[%emt 0:01:40]} c6 {[%emt 0:03:57]} 10. Bg5 {[%emt 0:02:11]} O-O {[%emt 0:01:05]} 11. Qf3 {[%emt 0:03:02]} h6 {[%emt 0:01:25]} 12. Bxf6 {[%emt 0:01:15]} Qxf6 {[%emt 0:00:19]} 13. Qxf6 {[%emt 0:01:02]} gxf6 {[%emt 0:00:11]} 14. Ne2 {[%emt 0:06:41]} Kh8 {[%emt 0:06:43]} 15. c3 {[%emt 0:05:10]} Bd6 {[%emt 0:02:18]} 16. Rfe1 {[%emt 0:02:15]} Rg8 {[%emt 0:02:11]} 17. Kh1 {[%emt 0:02:49]} Rb8 {[%emt 0:03:42]} 18. b3 {[%emt 0:03:47]} Be5 {[%emt 0:03:14]} 19. Rab1 {[%emt 0:04:07]} Bg4 {[%emt 0:03:07]} 20. f3 {[%emt 0:06:19]} Be6 {[%emt 0:03:20]} 21. Nd4 {[%emt 0:03:20]} Bd7 {[%emt 0:05:27]} 22. Nf5 {[%emt 0:09:08]} Bxf5 {[%emt 0:04:06]} 23. Bxf5 {[%emt 0:00:44]} Bxc3 {[%emt 0:02:34]} 24. Re7 {[%emt 0:03:45]} a5 {[%emt 0:04:49]} 25. Rc1 {[%emt 0:10:05]} Bb2 {[%emt 0:06:41]} 26. Rxc6 {[%emt 0:02:58]} Rge8 {[%emt 0:02:01]} 27. Rxe8+ {[%emt 0:02:59]} Rxe8 {[%emt 0:00:30]} 28. h3 {[%emt 0:00:21]} Re1+ {[%emt 0:00:54]} 29. Kh2 {[%emt 0:00:32]} Be5+ {[%emt 0:00:19]} 30. g3 {[%emt 0:01:29]} Re2+ {[%emt 0:00:35]} 31. Kg1 {[%emt 0:02:11]} Bxg3 {[%emt 0:03:19]} 32. Rxf6 {[%emt 0:04:24]} Kg7 {[%emt 0:00:42]} 33. Rc6 {[%emt 0:03:36]} Rxa2 {[%emt 0:01:30]} 34. Kf1 {[%emt 0:04:08]} Rf2+ {[%emt 0:01:18]} 35. Kg1 {[%emt 0:03:43]} Rxf3 {[%emt 0:01:04]} 36. Bc2 {[%emt 0:02:25]} d4 {[%emt 0:05:35]} 37. Kg2 {[%emt 0:03:42]} Re3 {[%emt 0:01:13]} 38. Bd1 {[%emt 0:02:40]} Be5 {[%emt 0:05:17]} 1-0

[Event "CZE-ch Youth G10-G12-G14 2022"]
[Site "Luhacovice"]
[Date "2022.03.19"]
[Round "9.23"]
[White "Vaclavkova Klara"]
[Black "Maresova Denisa"]
[Result "1-0"]
[ECO "D43"]
[WhiteElo "1000"]
[BlackElo "1103"]
[Annotator "NA"]
[PlyCount "47"]
[EventDate "2022.03.12"]
[EventType "swiss"]
[EventCountry "CZE"]
[SourceTitle "playchess.com"]
[Source "ChessBase"]
[SourceQuality "1"]
[TimeControl "40/5400+30:1800+30"]

1. d4 {[%emt 0:00:03]} e6 {[%emt 0:00:06]} 2. Nf3 {[%emt 0:00:10]} d5 {[%emt 0:00:32]} 3. c4 {[%emt 0:00:04]} c6 {[%emt 0:00:13]} 4. Bf4 {[%emt 0:00:08]} Nf6 {[%emt 0:00:30]} 5. Nc3 {[%emt 0:00:09]} Bd6 {[%emt 0:01:17]} 6. Bg3 {[%emt 0:00:05]} O-O {[%emt 0:00:30]} 7. e3 {[%emt 0:00:30]} Bxg3 {[%emt 0:00:17]} 8. hxg3 {[%emt 0:00:05]} Re8 {[%emt 0:00:34]} 9. Bd3 {[%emt 0:02:17]} dxc4 {[%emt 0:00:19]} 10. Bxc4 {[%emt 0:00:09]} Nbd7 {[%emt 0:00:28]} 11. Ne5 {[%emt 0:01:01]} Nxe5 {[%emt 0:05:31]} 12. dxe5 {[%emt 0:00:09]} Qxd1+ {[%emt 0:01:13]} 13. Rxd1 {[%emt 0:00:05]} b6 {[%emt 0:02:12]} 14. exf6 {[%emt 0:00:10]} Bb7 {[%emt 0:02:58]} 15. Rd7 {[%emt 0:01:01]} Rab8 {[%emt 0:00:56]} 16. Ne4 {[%emt 0:00:31]} Red8 {[%emt 0:02:05]} 17. Re7 {[%emt 0:00:57]} c5 {[%emt 0:04:39]} 18. Ng5 {[%emt 0:00:18]} h6 {[%emt 0:07:28]} 19. Nxf7 {[%emt 0:00:21]} Rdc8 {[%emt 0:03:42]} 20. Bxe6 {[%emt 0:00:12]} Kf8 {[%emt 0:08:17]} 21. Bxc8 {[%emt 0:00:37]} Bxc8 {[%emt 0:00:20]} 22. Rxa7 {[%emt 0:01:35]} Bb7 {[%emt 0:00:47]} 23. Nd6 {[%emt 0:00:40]} gxf6 {[%emt 0:00:29]} 24. Nxb7 {[%emt 0:00:34]} 1-0

[Event "CZE-ch Youth G10-G12-G14 2022"]
[Site "Luhacovice"]
[Date "2022.03.19"]
[Round "9.24"]
[White "Archlebova Eva"]
[Black "Souralova, Alena"]
[Result "1-0"]
[ECO "C50"]
[WhiteElo "1040"]
[BlackElo "1010"]
[Annotator "NA"]
[PlyCount "85"]
[EventDate "2022.03.12"]
[EventType "swiss"]
[EventCountry "CZE"]
[SourceTitle "playchess.com"]
[Source "ChessBase"]
[SourceQuality "1"]
[TimeControl "40/5400+30:1800+30"]

1. e4 {[%emt 0:00:05]} e5 {[%emt 0:00:21]} 2. Nf3 {[%emt 0:00:06]} Nc6 {[%emt 0:00:26]} 3. Nc3 {[%emt 0:00:06]} Nf6 {[%emt 0:00:40]} 4. Bc4 {[%emt 0:00:06]} Bc5 {[%emt 0:01:20]} 5. d3 {[%emt 0:00:12]} d6 {[%emt 0:00:34]} 6. Bg5 {[%emt 0:00:25]} Be6 {[%emt 0:02:08]} 7. O-O {[%emt 0:00:57]} h6 {[%emt 0:02:47]} 8. Be3 {[%emt 0:00:17]} Bb6 {[%emt 0:00:36]} 9. h3 {[%emt 0:00:42]} Qd7 {[%emt 0:00:24]} 10. Bb5 {[%emt 0:03:10]} O-O-O {[%emt 0:00:26]} 11. Qe2 {[%emt 0:01:02]} g5 {[%emt 0:00:54]} 12. Rad1 {[%emt 0:03:27]} Rdg8 {[%emt 0:02:07]} 13. d4 {[%emt 0:03:24]} exd4 {[%emt 0:00:53]} 14. Bxd4 {[%emt 0:00:24]} Bxd4 {[%emt 0:00:43]} 15. Nxd4 {[%emt 0:00:38]} g4 {[%emt 0:01:32]} 16. Nxe6 {[%emt 0:02:14]} fxe6 {[%emt 0:00:29]} 17. e5 {[%emt 0:00:29]} Nd5 {[%emt 0:00:48]} 18. Nxd5 {[%emt 0:00:41]} exd5 {[%emt 0:00:07]} 19. Rxd5 {[%emt 0:02:50]} gxh3 {[%emt 0:00:17]} 20. g3 {[%emt 0:06:59]} h5 {[%emt 0:01:06]} 21. e6 {[%emt 0:01:13]} Qg7 {[%emt 0:01:52]} 22. Bxc6 {[%emt 0:01:46]} bxc6 {[%emt 0:00:10]} 23. Qa6+ {[%emt 0:02:07]} Kd8 {[%emt 0:04:05]} 24. Qxc6 {[%emt 0:00:20]} h4 {[%emt 0:00:47]} 25. Re1 {[%emt 0:00:55]} h2+ {[%emt 0:01:27]} 26. Kh1 {[%emt 0:00:46]} Ke7 {[%emt 0:00:48]} 27. Kxh2 {[%emt 0:01:41]} hxg3+ {[%emt 0:00:29]} 28. Kg1 {[%emt 0:00:39]} gxf2+ {[%emt 0:00:15]} 29. Kxf2 {[%emt 0:00:11]} Qg3+ {[%emt 0:00:38]} 30. Ke2 {[%emt 0:03:00]} Rh2+ {[%emt 0:00:52]} 31. Kd1 {[%emt 0:00:41]} Qf3+ {[%emt 0:00:28]} 32. Kc1 {[%emt 0:01:00]} Rgg2 {[%emt 0:01:46]} 33. Qd7+ {[%emt 0:01:10]} Kf8 {[%emt 0:03:25]} 34. Rd3 {[%emt 0:01:55]} Rxc2+ {[%emt 0:00:38]} 35. Kb1 {[%emt 0:01:25]} Rxb2+ {[%emt 0:00:27]} 36. Ka1 {[%emt 0:01:34]} Rxa2+ {[%emt 0:00:20]} 37. Kb1 {[%emt 0:00:31]} Qb7+ {[%emt 0:00:51]} 38. Kc1 {[%emt 0:00:07]} Qb1+ {[%emt 0:03:12]} 39. Kxb1 {[%emt 0:00:17]} Rab2+ {[%emt 0:01:21]} 40. Kc1 {[%emt 0:00:28]} Rhc2+ {[%emt 0:00:05]} 41. Kd1 {[%emt 0:30:09]} Rb1+ {[%emt 0:30:07]} 42. Kxc2 {[%emt 0:00:04]} Rxe1 {[%emt 0:00:13]} 43. Qf7# {[%emt 0:00:05]} 1-0

[Event "CZE-ch Youth G10-G12-G14 2022"]
[Site "Luhacovice"]
[Date "2022.03.19"]
[Round "9.25"]
[White "Pruskova, Justyna"]
[Black "Mojzisova Barbora"]
[Result "1-0"]
[ECO "C28"]
[WhiteElo "1003"]
[BlackElo "1089"]
[Annotator "NA"]
[PlyCount "69"]
[EventDate "2022.03.12"]
[EventType "swiss"]
[EventCountry "CZE"]
[SourceTitle "playchess.com"]
[Source "ChessBase"]
[SourceQuality "1"]
[TimeControl "40/5400+30:1800+30"]

1. e4 {[%emt 0:00:03]} e5 {[%emt 0:00:25]} 2. Nf3 {[%emt 0:00:11]} Nc6 {[%emt 0:00:21]} 3. Bc4 {[%emt 0:00:14]} Bb4 {[%emt 0:00:50]} 4. Nc3 {[%emt 0:00:38]} Nf6 {[%emt 0:00:39]} 5. d3 {[%emt 0:00:27]} d6 {[%emt 0:01:34]} 6. Bb5 {[%emt 0:02:38]} Bd7 {[%emt 0:01:12]} 7. O-O {[%emt 0:01:24]} O-O {[%emt 0:03:01]} 8. Bg5 {[%emt 0:00:17]} h6 {[%emt 0:01:05]} 9. Bh4 {[%emt 0:00:25]} a6 {[%emt 0:00:52]} 10. Ba4 {[%emt 0:01:03]} Bc5 {[%emt 0:02:34]} 11. Nd5 {[%emt 0:01:24]} g5 {[%emt 0:03:37]} 12. Nxf6+ {[%emt 0:08:17]} Qxf6 {[%emt 0:00:57]} 13. Bg3 {[%emt 0:00:15]} h5 {[%emt 0:03:36]} 14. h3 {[%emt 0:02:23]} Kg7 {[%emt 0:04:36]} 15. Qd2 {[%emt 0:00:22]} g4 {[%emt 0:02:16]} 16. Nh4 {[%emt 0:00:44]} Rh8 {[%emt 0:03:36]} 17. Kh1 {[%emt 0:02:21]} gxh3 {[%emt 0:02:19]} 18. gxh3 {[%emt 0:00:35]} Bxh3 {[%emt 0:00:44]} 19. Rg1 {[%emt 0:00:20]} Kf8 {[%emt 0:02:48]} 20. Bxc6 {[%emt 0:04:13]} bxc6 {[%emt 0:00:21]} 21. b4 {[%emt 0:03:14]} Bb6 {[%emt 0:01:49]} 22. c4 {[%emt 0:00:54]} Bd4 {[%emt 0:01:21]} 23. Rab1 {[%emt 0:01:32]} Rb8 {[%emt 0:01:28]} 24. c5 {[%emt 0:01:26]} Ke7 {[%emt 0:01:39]} 25. Kh2 {[%emt 0:05:35]} Bg4 {[%emt 0:01:29]} 26. Rgf1 {[%emt 0:01:22]} Bf3 {[%emt 0:03:41]} 27. cxd6+ {[%emt 0:00:54]} cxd6 {[%emt 0:00:38]} 28. Nf5+ {[%emt 0:00:39]} Ke6 {[%emt 0:02:01]} 29. Bh4 {[%emt 0:01:16]} Qg6 {[%emt 0:01:14]} 30. Rg1 {[%emt 0:00:42]} Bg4 {[%emt 0:03:11]} 31. Rg2 {[%emt 0:00:55]} Qh7 {[%emt 0:01:22]} 32. Qg5 {[%emt 0:02:32]} Rb7 {[%emt 0:03:11]} 33. Qf6+ {[%emt 0:01:08]} Kd7 {[%emt 0:00:37]} 34. Qe7+ {[%emt 0:00:38]} Kc8 {[%emt 0:00:24]} 35. Nxd6+ {[%emt 0:00:37]} 1-0

[Event "CZE-ch Youth G10-G12-G14 2022"]
[Site "Luhacovice"]
[Date "2022.03.19"]
[Round "9.26"]
[White "Rezacova Julie"]
[Black "Zezulova Sara"]
[Result "1-0"]
[ECO "C47"]
[WhiteElo "1063"]
[BlackElo "1000"]
[Annotator "NA"]
[PlyCount "77"]
[EventDate "2022.03.12"]
[EventType "swiss"]
[EventCountry "CZE"]
[SourceTitle "playchess.com"]
[Source "ChessBase"]
[SourceQuality "1"]
[TimeControl "40/5400+30:1800+30"]

1. e4 {[%emt 0:00:06]} e5 {[%emt 0:00:09]} 2. Nf3 {[%emt 0:00:10]} Nc6 {[%emt 0:00:14]} 3. Nc3 {[%emt 0:00:15]} Nf6 {[%emt 0:00:24]} 4. d3 {[%emt 0:00:21]} Bc5 {[%emt 0:00:36]} 5. Bg5 {[%emt 0:00:24]} d6 {[%emt 0:00:51]} 6. Be2 {[%emt 0:00:22]} Be6 {[%emt 0:01:02]} 7. O-O {[%emt 0:00:21]} Qd7 {[%emt 0:00:39]} 8. Bxf6 {[%emt 0:00:37]} gxf6 {[%emt 0:00:34]} 9. Nd5 {[%emt 0:00:21]} Bxd5 {[%emt 0:00:58]} 10. exd5 {[%emt 0:00:12]} Nd4 {[%emt 0:01:11]} 11. Nxd4 {[%emt 0:00:21]} Bxd4 {[%emt 0:00:56]} 12. c3 {[%emt 0:00:10]} Bb6 {[%emt 0:00:47]} 13. d4 {[%emt 0:00:26]} O-O-O {[%emt 0:01:31]} 14. dxe5 {[%emt 0:00:14]} fxe5 {[%emt 0:01:02]} 15. Bg4 {[%emt 0:00:29]} f5 {[%emt 0:02:25]} 16. Bh3 {[%emt 0:00:18]} Kb8 {[%emt 0:00:51]} 17. b4 {[%emt 0:01:32]} Rhf8 {[%emt 0:02:02]} 18. a4 {[%emt 0:00:32]} a5 {[%emt 0:02:31]} 19. bxa5 {[%emt 0:02:02]} Bxa5 {[%emt 0:06:29]} 20. Qb3 {[%emt 0:00:30]} Rde8 {[%emt 0:02:15]} 21. Rab1 {[%emt 0:00:30]} Qc8 {[%emt 0:00:30]} 22. c4 {[%emt 0:00:30]} Bb6 {[%emt 0:00:30]} 23. Qa2 {[%emt 0:00:30]} Re7 {[%emt 0:00:30]} 24. a5 {[%emt 0:00:16]} Ba7 {[%emt 0:05:14]} 25. a6 {[%emt 0:00:11]} c5 {[%emt 0:03:04]} 26. Rb3 {[%emt 0:01:54]} Rff7 {[%emt 0:03:42]} 27. f3 {[%emt 0:01:11]} h5 {[%emt 0:01:42]} 28. Ra1 {[%emt 0:01:50]} Rd7 {[%emt 0:05:23]} 29. Qb1 {[%emt 0:01:08]} h4 {[%emt 0:04:09]} 30. Bxf5 {[%emt 0:00:21]} Rxf5 {[%emt 0:01:15]} 31. Qxf5 {[%emt 0:00:06]} b6 {[%emt 0:03:00]} 32. Rf1 {[%emt 0:00:44]} Rd8 {[%emt 0:01:39]} 33. Qxc8+ {[%emt 0:00:50]} Rxc8 {[%emt 0:00:34]} 34. f4 {[%emt 0:00:16]} Kc7 {[%emt 0:01:51]} 35. f5 {[%emt 0:00:20]} e4 {[%emt 0:00:41]} 36. g3 {[%emt 0:00:22]} hxg3 {[%emt 0:00:17]} 37. hxg3 {[%emt 0:00:03]} Rg8 {[%emt 0:00:56]} 38. f6 {[%emt 0:00:15]} Rf8 {[%emt 0:01:02]} 39. Re3 {[%emt 0:00:25]} 1-0

[Event "CZE-ch Youth G10-G12-G14 2022"]
[Site "Luhacovice"]
[Date "2022.03.19"]
[Round "9.27"]
[White "Kubickova Linda"]
[Black "Martinkovicova Nela"]
[Result "0-1"]
[ECO "C27"]
[WhiteElo "1000"]
[BlackElo "1032"]
[Annotator "NA"]
[PlyCount "70"]
[EventDate "2022.03.12"]
[EventType "swiss"]
[EventCountry "CZE"]
[SourceTitle "playchess.com"]
[Source "ChessBase"]
[SourceQuality "1"]
[TimeControl "40/5400+30:1800+30"]

1. e4 {[%emt 0:00:05]} e5 {[%emt 0:00:16]} 2. Nc3 {[%emt 0:00:10]} Bc5 {[%emt 0:00:32]} 3. Nf3 {[%emt 0:00:39]} Nf6 {[%emt 0:01:03]} 4. Bc4 {[%emt 0:00:40]} d6 {[%emt 0:00:40]} 5. O-O {[%emt 0:01:24]} Bg4 {[%emt 0:01:01]} 6. h3 {[%emt 0:00:44]} Bh5 {[%emt 0:00:32]} 7. g4 {[%emt 0:00:39]} Nxg4 {[%emt 0:04:35]} 8. hxg4 {[%emt 0:00:35]} Bxg4 {[%emt 0:00:15]} 9. Be2 {[%emt 0:00:51]} Nc6 {[%emt 0:07:53]} 10. Nh2 {[%emt 0:01:55]} Bh3 {[%emt 0:02:20]} 11. Re1 {[%emt 0:00:54]} Qg5+ {[%emt 0:01:31]} 12. Bg4 {[%emt 0:01:07]} h5 {[%emt 0:01:05]} 13. d4 {[%emt 0:03:01]} Qg6 {[%emt 0:02:06]} 14. dxc5 {[%emt 0:02:16]} hxg4 {[%emt 0:03:38]} 15. Ne2 {[%emt 0:04:03]} Nd4 {[%emt 0:08:33]} 16. Ng3 {[%emt 0:01:41]} Nf3+ {[%emt 0:04:15]} 17. Nxf3 {[%emt 0:01:39]} gxf3 {[%emt 0:02:15]} 18. Qxf3 {[%emt 0:01:10]} Bg4 {[%emt 0:04:16]} 19. Qg2 {[%emt 0:01:05]} O-O-O {[%emt 0:04:43]} 20. f3 {[%emt 0:05:48]} Bh3 {[%emt 0:02:05]} 21. Qf2 {[%emt 0:02:46]} dxc5 {[%emt 0:01:23]} 22. Be3 {[%emt 0:02:16]} b6 {[%emt 0:02:20]} 23. Rad1 {[%emt 0:01:37]} Rxd1 {[%emt 0:05:25]} 24. Rxd1 {[%emt 0:00:39]} Kb7 {[%emt 0:04:22]} 25. f4 {[%emt 0:02:00]} exf4 {[%emt 0:01:08]} 26. Bxf4 {[%emt 0:00:27]} Rh4 {[%emt 0:04:04]} 27. e5 {[%emt 0:01:47]} Rg4 {[%emt 0:01:49]} 28. Kh2 {[%emt 0:02:16]} Rh4 {[%emt 0:01:36]} 29. Qf3+ {[%emt 0:01:52]} Qc6 {[%emt 0:02:08]} 30. Qxc6+ {[%emt 0:01:16]} Kxc6 {[%emt 0:00:11]} 31. Kg1 {[%emt 0:01:28]} Rxf4 {[%emt 0:01:02]} 32. Kh2 {[%emt 0:01:53]} Be6 {[%emt 0:01:13]} 33. b3 {[%emt 0:02:12]} Rf2+ {[%emt 0:01:27]} 34. Kg1 {[%emt 0:01:09]} Rxc2 {[%emt 0:00:46]} 35. a3 {[%emt 0:01:37]} Bxb3 {[%emt 0:00:41]} 0-1

[Event "CZE-ch Youth G10-G12-G14 2022"]
[Site "Luhacovice"]
[Date "2022.03.19"]
[Round "9.28"]
[White "Spetlova Stella"]
[Black "Archlebova Iva"]
[Result "0-1"]
[ECO "C45"]
[WhiteElo "1000"]
[BlackElo "1028"]
[Annotator "NA"]
[PlyCount "82"]
[EventDate "2022.03.12"]
[EventType "swiss"]
[EventCountry "CZE"]
[SourceTitle "playchess.com"]
[Source "ChessBase"]
[SourceQuality "1"]
[TimeControl "40/5400+30:1800+30"]

1. e4 {[%emt 0:00:12]} e5 {[%emt 0:00:19]} 2. Nf3 {[%emt 0:00:48]} Nc6 {[%emt 0:00:41]} 3. d4 {[%emt 0:01:01]} exd4 {[%emt 0:00:59]} 4. Nxd4 {[%emt 0:01:00]} Bc5 {[%emt 0:00:42]} 5. Nb3 {[%emt 0:01:09]} Bb6 {[%emt 0:01:26]} 6. Nc3 {[%emt 0:01:28]} Nf6 {[%emt 0:01:11]} 7. Bg5 {[%emt 0:06:57]} h6 {[%emt 0:01:04]} 8. Bh4 {[%emt 0:00:30]} d6 {[%emt 0:00:30]} 9. Bb5 {[%emt 0:00:30]} O-O {[%emt 0:01:39]} 10. Nd5 {[%emt 0:02:23]} g5 {[%emt 0:11:52]} 11. Nxf6+ {[%emt 0:02:55]} Qxf6 {[%emt 0:01:02]} 12. Bg3 {[%emt 0:08:22]} Re8 {[%emt 0:02:09]} 13. f3 {[%emt 0:10:17]} Qxb2 {[%emt 0:12:14]} 14. Bf2 {[%emt 0:14:47]} Qc3+ {[%emt 0:01:40]} 15. Qd2 {[%emt 0:01:03]} Qxd2+ {[%emt 0:01:26]} 16. Nxd2 {[%emt 0:00:23]} Ba5 {[%emt 0:00:49]} 17. Be3 {[%emt 0:08:05]} Re5 {[%emt 0:00:37]} 18. Bd3 {[%emt 0:00:35]} Nb4 {[%emt 0:01:54]} 19. O-O {[%emt 0:07:38]} Nxd3 {[%emt 0:00:55]} 20. cxd3 {[%emt 0:00:20]} b5 {[%emt 0:01:45]} 21. f4 {[%emt 0:00:32]} gxf4 {[%emt 0:00:47]} 22. Bxf4 {[%emt 0:00:48]} Bb6+ {[%emt 0:01:41]} 23. Kh1 {[%emt 0:00:38]} Rh5 {[%emt 0:01:07]} 24. Rf3 {[%emt 0:01:17]} Kh7 {[%emt 0:01:36]} 25. h3 {[%emt 0:01:13]} Be6 {[%emt 0:00:27]} 26. Nf1 {[%emt 0:02:40]} Rg8 {[%emt 0:00:43]} 27. Ng3 {[%emt 0:00:35]} Rh4 {[%emt 0:03:58]} 28. Raf1 {[%emt 0:01:43]} Bg4 {[%emt 0:02:15]} 29. R3f2 {[%emt 0:01:38]} Bxf2 {[%emt 0:01:04]} 30. Rxf2 {[%emt 0:00:41]} Be6 {[%emt 0:01:20]} 31. Kg1 {[%emt 0:01:08]} Bxa2 {[%emt 0:02:30]} 32. Nf5 {[%emt 0:01:47]} Rxh3 {[%emt 0:04:11]} 33. Kf1 {[%emt 0:01:14]} Rh1+ {[%emt 0:01:40]} 34. Ke2 {[%emt 0:00:12]} Be6 {[%emt 0:01:40]} 35. Ng3 {[%emt 0:00:20]} Bg4+ {[%emt 0:01:24]} 36. Ke3 {[%emt 0:00:23]} Re1+ {[%emt 0:00:53]} 37. Kd2 {[%emt 0:00:04]} Rb1 {[%emt 0:01:15]} 38. Ke3 {[%emt 0:00:11]} a5 {[%emt 0:01:08]} 39. Ra2 {[%emt 0:00:10]} a4 {[%emt 0:01:24]} 40. Ne2 {[%emt 0:01:27]} Bxe2 {[%emt 0:00:44]} 41. Kxe2 {[%emt 0:30:12]} Rxg2+ {[%emt 0:30:16]} 0-1

[Event "CZE-ch Youth G10-G12-G14 2022"]
[Site "Luhacovice"]
[Date "2022.03.19"]
[Round "9.29"]
[White "Rybackova, Lucie"]
[Black "Zadrapova, Amalie"]
[Result "1-0"]
[ECO "D13"]
[WhiteElo "1612"]
[BlackElo "1582"]
[Annotator "NA"]
[PlyCount "57"]
[EventDate "2022.03.12"]
[EventType "swiss"]
[EventCountry "CZE"]
[SourceTitle "playchess.com"]
[Source "ChessBase"]
[SourceQuality "1"]
[TimeControl "40/5400+30:1800+30"]

1. d4 {[%emt 0:00:10]} d5 {[%emt 0:00:06]} 2. c4 {[%emt 0:00:25]} c6 {[%emt 0:00:05]} 3. cxd5 {[%emt 0:00:15]} cxd5 {[%emt 0:00:30]} 4. Nc3 {[%emt 0:01:29]} Nf6 {[%emt 0:01:32]} 5. Bf4 {[%emt 0:02:10]} Nc6 {[%emt 0:07:53]} 6. e3 {[%emt 0:01:54]} e6 {[%emt 0:07:27]} 7. Nf3 {[%emt 0:13:13]} Nh5 {[%emt 0:07:35]} 8. Bg3 {[%emt 0:03:30]} Nxg3 {[%emt 0:00:33]} 9. hxg3 {[%emt 0:00:16]} Bd7 {[%emt 0:04:29]} 10. Bd3 {[%emt 0:02:58]} g6 {[%emt 0:03:00]} 11. a3 {[%emt 0:02:17]} Rc8 {[%emt 0:03:20]} 12. Rc1 {[%emt 0:09:24]} Na5 {[%emt 0:22:40]} 13. Ne5 {[%emt 0:11:55]} Bg7 {[%emt 0:02:56]} 14. Qg4 {[%emt 0:12:56]} f5 {[%emt 0:11:42]} 15. Qf4 {[%emt 0:04:49]} Nc6 {[%emt 0:09:25]} 16. Nxc6 {[%emt 0:06:48]} Rxc6 {[%emt 0:03:17]} 17. g4 {[%emt 0:02:10]} h6 {[%emt 0:05:45]} 18. Ke2 {[%emt 0:04:28]} a6 {[%emt 0:00:59]} 19. Na2 {[%emt 0:03:23]} Kf7 {[%emt 0:02:44]} 20. Rxc6 {[%emt 0:00:58]} Bxc6 {[%emt 0:00:21]} 21. Nb4 {[%emt 0:00:40]} Bd7 {[%emt 0:00:54]} 22. gxf5 {[%emt 0:00:36]} gxf5 {[%emt 0:00:44]} 23. Rc1 {[%emt 0:02:11]} a5 {[%emt 0:00:16]} 24. Na2 {[%emt 0:00:16]} Bc6 {[%emt 0:00:45]} 25. b4 {[%emt 0:00:37]} axb4 {[%emt 0:01:49]} 26. Nxb4 {[%emt 0:00:18]} Qb6 {[%emt 0:01:00]} 27. Nxc6 {[%emt 0:01:48]} bxc6 {[%emt 0:00:03]} 28. Qd6 {[%emt 0:00:15]} Rc8 {[%emt 0:00:54]} 29. Qd7+ {[%emt 0:00:08]} 1-0

[Event "CZE-ch Youth G10-G12-G14 2022"]
[Site "Luhacovice"]
[Date "2022.03.19"]
[Round "9.30"]
[White "Brezikova, Beata"]
[Black "Barteckova, Denisa"]
[Result "0-1"]
[ECO "B11"]
[WhiteElo "1266"]
[BlackElo "1323"]
[Annotator "NA"]
[PlyCount "68"]
[EventDate "2022.03.12"]
[EventType "swiss"]
[EventCountry "CZE"]
[SourceTitle "playchess.com"]
[Source "ChessBase"]
[SourceQuality "1"]
[TimeControl "40/5400+30:1800+30"]

1. e4 {[%emt 0:00:03]} c6 {[%emt 0:00:04]} 2. Nc3 {[%emt 0:00:11]} d5 {[%emt 0:00:07]} 3. Nf3 {[%emt 0:00:14]} Bg4 {[%emt 0:00:49]} 4. h3 {[%emt 0:03:04]} Bxf3 {[%emt 0:01:36]} 5. Qxf3 {[%emt 0:00:22]} Nf6 {[%emt 0:00:12]} 6. exd5 {[%emt 0:08:29]} cxd5 {[%emt 0:01:38]} 7. d4 {[%emt 0:07:32]} e6 {[%emt 0:00:27]} 8. Ne2 {[%emt 0:15:10]} Nc6 {[%emt 0:00:40]} 9. c3 {[%emt 0:03:27]} Qb6 {[%emt 0:05:14]} 10. Ng3 {[%emt 0:10:25]} Rc8 {[%emt 0:05:23]} 11. Bd3 {[%emt 0:09:53]} Bd6 {[%emt 0:05:05]} 12. Nh5 {[%emt 0:09:49]} Nxh5 {[%emt 0:02:30]} 13. Qxh5 {[%emt 0:00:18]} g6 {[%emt 0:08:05]} 14. Qh6 {[%emt 0:04:26]} Bf8 {[%emt 0:00:22]} 15. Qg5 {[%emt 0:02:00]} Bg7 {[%emt 0:00:32]} 16. O-O {[%emt 0:01:09]} O-O {[%emt 0:00:29]} 17. h4 {[%emt 0:10:40]} Rfe8 {[%emt 0:06:05]} 18. h5 {[%emt 0:02:01]} e5 {[%emt 0:00:58]} 19. hxg6 {[%emt 0:01:25]} fxg6 {[%emt 0:00:45]} 20. dxe5 {[%emt 0:06:07]} Rxe5 {[%emt 0:01:13]} 21. Qg3 {[%emt 0:01:16]} Rce8 {[%emt 0:05:45]} 22. Bf4 {[%emt 0:01:35]} R5e7 {[%emt 0:00:24]} 23. Rab1 {[%emt 0:00:34]} Be5 {[%emt 0:00:48]} 24. Bxe5 {[%emt 0:00:56]} Nxe5 {[%emt 0:01:28]} 25. Qg5 {[%emt 0:00:33]} Qa5 {[%emt 0:03:28]} 26. Bc2 {[%emt 0:00:38]} Qxa2 {[%emt 0:00:54]} 27. Rfd1 {[%emt 0:00:29]} Qc4 {[%emt 0:22:07]} 28. f4 {[%emt 0:00:28]} Qe2 {[%emt 0:02:42]} 29. Bb3 {[%emt 0:00:50]} Ng4 {[%emt 0:03:03]} 30. Qxd5+ {[%emt 0:00:30]} Kg7 {[%emt 0:00:55]} 31. Qd4+ {[%emt 0:00:32]} Kh6 {[%emt 0:01:00]} 32. g3 {[%emt 0:00:26]} Re3 {[%emt 0:00:39]} 33. Rd2 {[%emt 0:00:34]} Rxg3+ {[%emt 0:00:33]} 34. Kh1 {[%emt 0:00:15]} Qf3+ {[%emt 0:00:09]} 0-1